bitfinex/quotes_SOLUSD_20260108
["timestamp","ask_amount","ask_price","bid_price","bid_amount"]
[1767855249562,2.23856066,135.2,135.15,0.67406808]
[1767855249748,9.63563923,135.19,135.17,0.67406808]
[1767855250137,7.39707857,135.19,135.17,0.67406808]
[1767855250346,9.63563923,135.19,135.14,20.89955643]
[1767855250546,7.39707857,135.19,135.14,20.89955643]
[1767855250751,9.63563923,135.19,135.14,20.89955643]
[1767855251445,9.63563923,135.19,135.15,0.67406808]
[1767855252256,7.39707857,135.19,135.15,0.67406808]
[1767855252462,7.39656125,135.2,135.16,0.67406808]
[1767855253942,9.63450526,135.21,135.17,0.67406808]
[1767855254561,7.3959446,135.21,135.17,0.67406808]
[1767855254752,9.63450526,135.21,135.17,0.67406808]
[1767855255561,9.63404623,135.22,135.17,0.67406808]
[1767855256346,7.39548557,135.22,135.18,0.67406808]
[1767855256596,0.63832041,135.23,135.16,0.67406808]
[1767855256750,0.64406809,135.23,135.16,0.67406808]
[1767855257070,2.23856066,135.22,135.18,0.67406808]
[1767855258276,7.39590266,135.21,135.18,0.67406808]
[1767855259264,10.27278373,135.21,135.16,0.67406808]
[1767855259652,7.39590266,135.21,135.17,0.67406808]
[1767855259860,9.63446332,135.21,135.17,0.67406808]
[1767855260562,7.39575508,135.22,135.18,0.67406808]
[1767855260743,7.39505497,135.23,135.19,0.67406808]
[1767855261877,7.46377461,135.24,135.19,0.67406808]
[1767855262165,7.39447461,135.24,135.2,0.67406808]
[1767855262571,9.63303527,135.24,135.2,0.67406808]
[1767855262969,10.27135568,135.24,135.2,0.67406808]
[1767855263173,2.23856066,135.23,135.19,0.67406808]
[1767855264653,9.63363293,135.23,135.19,0.67406808]
[1767855265170,9.70862314,135.23,135.19,0.67406808]
[1767855265672,2.23856066,135.22,135.19,0.67406808]
[1767855266580,10.90093678,135.22,135.19,0.67406808]
[1767855269957,3.50542298,135.21,135.19,0.67406808]
[1767855270351,3.58599016,135.21,135.17,0.67406808]
[1767855270972,3.50542298,135.21,135.17,0.67406808]
[1767855271278,4.14374339,135.2,135.15,0.67406808]
[1767855271651,13.5,135.23,135.15,0.67406808]
[1767855271652,3.50542298,135.18,135.15,0.67406808]
[1767855272154,10.90343251,135.18,135.15,0.67406808]
[1767855272580,7.39800953,135.18,135.15,0.67406808]
[1767855274256,3.50542298,135.17,135.14,0.71520467]
[1767855274472,3.58599016,135.17,135.14,0.71520467]
[1767855274961,3.58599016,135.17,135.12,0.71520467]
[1767855275683,3.50542298,135.17,135.13,0.71520467]
[1767855275901,26.53593765,135.18,135.13,0.71520467]
[1767855276061,3.50542298,135.17,135.13,0.71520467]
[1767855276257,10.90363325,135.17,135.13,0.71520467]
[1767855276873,7.39821027,135.17,135.14,0.71520467]
[1767855277583,0.0693,135.19,135.16,0.71520467]
[1767855277584,7.39720573,135.19,135.16,0.71520467]
[1767855277791,18.48894205,135.22,135.18,0.71520467]
[1767855278288,18.48894205,135.22,135.19,0.71520467]
[1767855278289,7.39559871,135.22,135.19,0.71520467]
[1767855280285,0.6386174,135.21,135.17,4.22062765]
[1767855280788,7.39559871,135.22,135.18,0.71520467]
[1767855281085,11.00002169,135.22,135.18,0.71520467]
[1767855281473,7.49459871,135.22,135.18,0.71520467]
[1767855281779,11.00002169,135.22,135.18,0.71520467]
[1767855282886,3.88874612,135.23,135.19,0.71520467]
[1767855283772,3.50542298,135.22,135.19,0.71520467]
[1767855284380,10.90090731,135.22,135.19,0.71520467]
[1767855284874,7.39548433,135.22,135.19,0.71520467]
[1767855285397,10.90090731,135.22,135.19,0.71520467]
[1767855285888,7.39548433,135.22,135.19,0.71520467]
[1767855286071,10.90090731,135.22,135.19,0.71520467]
[1767855286665,10.90090731,135.22,135.17,3.50542298]
[1767855286666,3.50542298,135.2,135.16,0.71520467]
[1767855287577,3.60981916,135.21,135.16,0.71520467]
[1767855288171,11.00603884,135.21,135.16,0.71520467]
[1767855288372,4.13869817,135.2,135.16,0.71520467]
[1767855289388,3.50542298,135.2,135.16,0.71520467]
[1767855289594,10.90164266,135.21,135.16,0.71520467]
[1767855289887,7.39621968,135.21,135.16,4.22062765]
[1767855290087,7.39621968,135.21,135.18,0.71520467]
[1767855291090,7.49521968,135.21,135.18,0.71520467]
[1767855291473,11.00064266,135.21,135.16,0.71520467]
[1767855292292,29.49039933,135.21,135.16,0.71520467]
[1767855292495,4.91753651,135.2,135.16,0.71520467]
[1767855293291,12.95277636,135.2,135.16,4.22062765]
[1767855293474,7.39662245,135.2,135.17,4.22062765]
[1767855293798,7.39662245,135.2,135.17,0.71520467]
[1767855294187,11.54066283,135.2,135.17,0.71520467]
[1767855294501,11.54066283,135.2,135.14,20.89951611]
[1767855294805,0.10439618,135.19,135.15,0.71520467]
[1767855295009,3.60981916,135.19,135.15,0.71520467]
[1767855295173,10.903131,135.18,135.15,0.71520467]
[1767855295581,10.903131,135.18,135.11,18.50299901]
[1767855295582,8.03098321,135.18,135.14,0.71520467]
[1767855295902,4.13346226,135.16,135.13,0.71520467]
[1767855296106,8.04177611,135.18,135.13,0.71520467]
[1767855296289,11.54719909,135.18,135.14,0.71520467]
[1767855296616,7.39713242,135.19,135.15,0.71520467]
[1767855296782,7.39713242,135.19,135.16,0.71520467]
[1767855297200,21.54065873,135.2,135.16,0.71520467]
[1767855298128,8.04065873,135.2,135.16,0.71520467]
[1767855298304,7.39659064,135.2,135.17,0.71520467]
[1767855298484,3.50542298,135.16,135.11,0.71520467]
[1767855298688,3.50542298,135.15,135.11,0.71520467]
[1767855299017,13.78432314,135.19,135.11,0.71520467]
[1767855299200,3.50542298,135.15,135.11,0.71520467]
[1767855299401,10.90463841,135.15,135.11,0.71520467]
[1767855300217,3.50542298,135.14,135.11,0.71520467]
[1767855300598,7.39921543,135.15,135.11,0.71520467]
[1767855300797,10.90463841,135.15,135.11,0.71520467]
[1767855301412,3.50542298,135.15,135.11,0.71520467]
[1767855302288,3.50542298,135.15,135.12,0.67074152]
[1767855302911,3.50542298,135.16,135.12,0.67074152]
[1767855303107,7.39754401,135.18,135.12,0.67074152]
[1767855303308,10.90268598,135.19,135.14,0.71953527]
[1767855303504,10.90268598,135.19,135.15,0.71953527]
[1767855303706,3.50542298,135.19,135.15,0.71953527]
[1767855303904,7.39542177,135.22,135.17,0.71953527]
[1767855304126,10.90084475,135.22,135.17,0.71953527]
[1767855305103,13.5,135.25,135.18,0.71953527]
[1767855305417,10.89968503,135.24,135.19,0.71953527]
[1767855306102,10.89968503,135.24,135.2,0.71953527]
[1767855306994,7.3915293,135.29,135.23,4.22495825]
[1767855307191,7.3915293,135.29,135.24,3.50542298]
[1767855307602,0.5,135.28,135.24,3.50542298]
[1767855308022,7.3915293,135.29,135.24,3.50542298]
[1767855308521,10.89655921,135.3,135.25,3.50542298]
[1767855308896,7.39113623,135.3,135.25,3.50542298]
[1767855309115,7.39113623,135.3,135.26,0.71953527]
[1767855309323,10.96996109,135.3,135.26,0.67282706]
[1767855309517,3.50542298,135.29,135.26,0.67282706]
[1767855310218,10.9705608,135.29,135.23,3.50542298]
[1767855310416,10.9705608,135.29,135.22,7.39513939]
[1767855310621,0.35772502,135.28,135.2,18.49055987]
[1767855310819,3.57882486,135.26,135.2,17.00542298]
[1767855311116,3.50542298,135.25,135.2,3.50542298]
[1767855311305,3.50542298,135.25,135.2,11.62125021]
[1767855311510,3.57882486,135.26,135.21,4.22495825]
[1767855311825,0.07340188,135.26,135.21,4.22495825]
[1767855312611,7.39316871,135.26,135.22,0.71953527]
[1767855313420,10.89859169,135.26,135.22,0.71953527]
[1767855317955,7.39262216,135.27,135.22,0.71953527]
[1767855318261,3.57882486,135.26,135.21,11.62052953]
[1767855318422,0.07340188,135.25,135.2,10.90167276]
[1767855318841,0.07340188,135.25,135.21,7.39588028]
[1767855319220,3.50542298,135.26,135.22,0.71953527]
[1767855319433,0.07340188,135.26,135.21,10.90130326]
[1767855319615,10.89804514,135.27,135.22,0.71953527]
[1767855319816,7.75003342,135.28,135.23,0.71953527]
[1767855320143,3.50542298,135.28,135.23,0.71953527]
[1767855320340,3.78974612,135.28,135.23,0.71953527]
[1767855321126,3.78974612,135.28,135.24,0.71953527]
[1767855321445,0.28432314,135.28,135.24,0.71953527]
[1767855321834,10.97035416,135.29,135.24,0.71953527]
[1767855322248,3.57882486,135.28,135.24,0.71953527]
[1767855322549,25.87035256,135.29,135.24,0.71953527]
[1767855322723,3.78974612,135.28,135.24,0.71953527]
[1767855323124,3.50542298,135.28,135.24,0.71953527]
[1767855324349,10.89804514,135.27,135.24,0.71953527]
[1767855325950,29.37960054,135.27,135.2,7.39632467]
[1767855326150,29.37960054,135.27,135.23,0.71953527]
[1767855326531,28.11615442,135.27,135.23,0.71953527]
[1767855327343,2.24197686,135.25,135.23,0.71953527]
[1767855327543,2.24197686,135.25,135.21,0.71953527]
[1767855327744,2.59970188,135.26,135.21,2.96151213]
[1767855328046,0.07340188,135.25,135.21,2.24197686]
[1767855328428,2.59970188,135.26,135.22,0.71953527]
[1767855328644,7.39371534,135.25,135.22,0.71953527]
[1767855334232,7.67773664,135.26,135.22,2.96151213]
[1767855334434,13.5,135.28,135.24,0.69938226]
[1767855334750,13.5,135.28,135.24,2.94135912]
[1767855335630,20.96573167,135.28,135.24,2.24197686]
[1767855335950,13.5,135.28,135.25,0.69938226]
[1767855336160,0.35772502,135.27,135.23,0.69938226]
[1767855336328,0.35772502,135.27,135.2,2.24197686]
[1767855336329,2.24197686,135.25,135.22,0.69938226]
[1767855336530,0.07340188,135.26,135.22,0.69938226]
[1767855336729,2.31537874,135.26,135.22,0.69938226]
[1767855336953,0.07340188,135.26,135.22,0.69938226]
[1767855337259,7.39371534,135.25,135.22,0.69938226]
[1767855339631,9.70854745,135.26,135.22,0.69938226]
[1767855341131,9.63514557,135.26,135.22,0.69938226]
[1767855341852,0.07340188,135.25,135.21,0.69938226]
[1767855342543,9.70854745,135.26,135.21,0.69938226]
[1767855343056,2.24197686,135.25,135.21,0.69938226]
[1767855343744,9.70854745,135.26,135.21,0.69938226]
[1767855345359,20.96657059,135.26,135.21,0.69938226]
[1767855345545,7.46657059,135.26,135.21,0.69938226]
[1767855345858,23.20854745,135.26,135.21,0.69938226]
[1767855346259,23.20854745,135.26,135.22,0.69938226]
[1767855347961,0.07340188,135.24,135.2,0.69938226]
[1767855348138,2.31537874,135.21,135.17,0.69938226]
[1767855348741,0.07340188,135.21,135.17,0.69938226]
[1767855349049,7.15853458,135.22,135.17,0.69938226]
[1767855349467,14.55403047,135.22,135.18,0.69938226]
[1767855349770,9.63747275,135.22,135.18,0.69938226]
[1767855350093,15.74197686,135.24,135.19,0.69938226]
[1767855350243,4.91715874,135.23,135.19,0.69938226]
[1767855351673,12.31210562,135.23,135.19,0.69938226]
[1767855351857,7.39494688,135.23,135.19,0.69938226]
[1767855352054,7.39494688,135.23,135.19,2.94135912]
[1767855352256,7.39494688,135.23,135.2,0.69938226]
[1767855353869,23.20977935,135.24,135.2,0.69938226]
[1767855358363,20.89440061,135.24,135.2,0.69938226]
[1767855358560,23.13637747,135.24,135.2,0.69938226]
[1767855358774,20.89440061,135.24,135.2,0.69938226]
[1767855359382,7.39388008,135.25,135.22,0.69938226]
[1767855359550,9.91971489,135.26,135.22,0.69938226]
[1767855359858,9.63539175,135.26,135.23,0.69938226]
[1767855360450,9.70879363,135.26,135.22,0.69938226]
[1767855360652,9.70879363,135.26,135.21,2.24197686]
[1767855360653,2.38413843,135.28,135.24,0.69938226]
[1767855360857,4.91738405,135.28,135.24,0.69938226]
[1767855361053,12.30977592,135.28,135.25,0.69938226]
[1767855361247,7.39119889,135.3,135.27,0.69938226]
[1767855361653,7.39119889,135.3,135.26,2.94135912]
[1767855361872,7.39119889,135.3,135.27,0.69938226]
[1767855362053,7.39119889,135.3,135.25,0.66746357]
[1767855362255,7.39119889,135.3,135.26,0.66746357]
[1767855364160,9.63317575,135.3,135.26,0.66746357]
[1767855366367,7.39119889,135.3,135.26,0.66746357]
[1767855366568,9.63317575,135.3,135.26,0.66746357]
[1767855367178,7.39119889,135.3,135.26,0.66746357]
[1767855367568,9.63317575,135.3,135.26,0.66746357]
[1767855368473,7.39119889,135.3,135.26,0.66746357]
[1767855368673,9.63317575,135.3,135.26,0.66746357]
[1767855371091,28.18403513,135.3,135.26,0.66746357]
[1767855371395,2.24197686,135.27,135.24,0.67999485]
[1767855371601,15.81537874,135.28,135.24,0.67999485]
[1767855373370,7.39262216,135.27,135.24,0.67999485]
[1767855374089,9.63459902,135.27,135.23,0.67999485]
[1767855374285,7.39262216,135.27,135.23,0.67999485]
[1767855374988,9.7080009,135.27,135.23,0.67999485]
[1767855375688,7.46602404,135.27,135.23,0.67999485]
[1767855375884,7.46602404,135.27,135.23,2.92197171]
[1767855376069,7.39262216,135.27,135.24,0.67999485]
[1767855376785,2.31537874,135.26,135.22,0.67999485]
[1767855376970,2.24197686,135.26,135.22,0.67999485]
[1767855377791,7.39371534,135.25,135.22,0.67999485]
[1767855378086,7.39336982,135.26,135.22,0.67999485]
[1767855378296,9.63534668,135.26,135.22,0.67999485]
[1767855380570,9.70823495,135.27,135.22,0.67999485]
[1767855381372,9.70823495,135.27,135.23,0.67999485]
[1767855381798,7.46625809,135.27,135.23,0.67999485]
[1767855381989,9.70823495,135.27,135.23,0.67999485]
[1767855385620,9.63523066,135.26,135.23,0.67999485]
[1767855387598,2.24197686,135.24,135.22,0.67999485]
[1767855387900,18.48206032,135.27,135.2,0.67999485]
[1767855387901,2.24197686,135.23,135.2,0.67999485]
[1767855388489,3.50542799,135.22,135.2,0.67999485]
[1767855390100,10.89972527,135.24,135.2,0.67999485]
[1767855393708,7.39390271,135.25,135.21,0.71506779]
[1767855394006,17.07882987,135.26,135.23,0.71506779]
[1767855394007,7.39342753,135.26,135.23,0.71506779]
[1767855395410,10.89885552,135.26,135.23,0.71506779]
[1767855395886,7.39342753,135.26,135.23,0.71506779]
[1767855396212,10.89885552,135.26,135.23,0.71506779]
[1767855396584,3.50542799,135.25,135.21,0.71506779]
[1767855396786,3.50542799,135.24,135.21,0.71506779]
[1767855397502,3.57882987,135.25,135.21,0.71506779]
[1767855398085,3.50542799,135.25,135.21,0.71506779]
[1767855398492,10.89929799,135.25,135.21,0.71506779]
[1767855399203,7.39387,135.25,135.21,0.71506779]
[1767855399505,10.89929799,135.25,135.21,0.71506779]
[1767855400112,3.50542799,135.24,135.21,0.71506779]
[1767855401111,3.57882987,135.22,135.18,0.71506779]
[1767855401296,3.50542799,135.2,135.16,0.71506779]
[1767855402892,10.90277801,135.19,135.16,0.71506779]
[1767855403904,7.39735002,135.19,135.16,0.71506779]
[1767855404220,32.06398565,135.21,135.17,0.71506779]
[1767855404221,7.39652401,135.2,135.17,0.71506779]
[1767855404406,20.8959882,135.21,135.18,0.71506779]
[1767855404592,24.40141619,135.21,135.18,0.71506779]
[1767855404793,3.50542799,135.2,135.18,0.71506779]
[1767855405294,24.40141619,135.21,135.18,0.71506779]
[1767855408222,10.90225239,135.2,135.16,0.71506779]
[1767855409522,7.3968244,135.2,135.16,0.71506779]
[1767855409724,10.90225239,135.2,135.16,0.71506779]
[1767855411423,3.50542799,135.18,135.15,0.71506779]
[1767855411605,3.57882987,135.18,135.14,0.71506779]
[1767855412210,17.07882987,135.18,135.14,0.71506779]
[1767855412720,3.57882987,135.16,135.12,0.71506779]
[1767855413227,3.50542799,135.14,135.1,0.71506779]
[1767855413523,10.97911108,135.13,135.09,0.71506779]
[1767855413724,7.40028121,135.13,135.09,0.71506779]
[1767855413915,10.9057092,135.13,135.09,0.71506779]
[1767855414116,7.40028121,135.13,135.1,0.71506779]
[1767855414424,10.9057092,135.13,135.1,0.71506779]
[1767855414819,7.40028121,135.13,135.1,0.71506779]
[1767855415019,10.9057092,135.13,135.1,0.71506779]
[1767855415224,7.47313548,135.14,135.1,0.71506779]
[1767855415523,0.07340188,135.13,135.09,0.71506779]
[1767855416126,3.57882987,135.13,135.09,0.71506779]
[1767855416434,0.07340188,135.11,135.07,4.42049578]
[1767855416732,3.50542799,135.12,135.07,0.2]
[1767855416733,3.57882987,135.1,135.07,0.2]
[1767855416928,3.57882987,135.11,135.07,0.91506779]
[1767855417302,7.40179514,135.11,135.07,0.91506779]
[1767855417517,20.90103188,135.12,135.09,0.71506779]
[1767855418132,20.90103188,135.12,135.07,11.10889079]
[1767855418133,0.07340188,135.11,135.08,3.50542799]
[1767855418630,3.50542799,135.1,135.07,0.12659812]
[1767855419206,7.40197872,135.1,135.07,0.84166591]
[1767855420728,10.90740671,135.1,135.07,0.84166591]
[1767855420920,7.40197872,135.1,135.07,0.84166591]
[1767855421119,29.41221796,135.1,135.07,1e-08]
[1767855421326,13.5,135.12,135.02,0.71506779]
[1767855421327,7.40356852,135.07,135.02,0.71506779]
[1767855421524,3.50542799,135.05,135.02,0.71506779]
[1767855421829,3.50542799,135.05,134.96,13.52]
[1767855421830,3.50542799,135.03,134.96,7.40925359]
[1767855422031,3.50542799,135.03,134.97,10.91439245]
[1767855422228,0.28432314,135.04,134.97,10.91439245]
[1767855422430,0.28432314,135.04,134.98,3.50542799]
[1767855422929,17.73213448,135.05,135.0,3.50542799]
[1767855423158,0.70670649,135.05,135.01,3.50542799]
[1767855423309,11.61726343,135.05,134.99,3.50542799]
[1767855423508,3.50542799,135.04,134.99,3.50542799]
[1767855423736,3.50542799,135.04,135.0,0.68477694]
[1767855424626,26.60763284,135.05,135.0,0.68477694]
[1767855424834,3.63403374,135.03,134.99,0.68477694]
[1767855425020,3.63403374,135.03,134.98,0.68477694]
[1767855425021,4.18502539,135.02,134.98,0.68477694]
[1767855425227,0.6795974,135.02,134.98,0.68477694]
[1767855425428,8.08638617,135.02,134.98,0.68477694]
[1767855425613,17.02542799,135.03,134.99,0.68477694]
[1767855425814,20.92596476,135.03,135.0,0.68477694]
[1767855426326,13.52,135.03,135.0,0.68477694]
[1767855426516,7.40542569,135.04,135.0,0.68477694]
[1767855426712,11.033202,135.05,135.0,3.50542799]
[1767855426962,7.40479005,135.05,135.02,0.68477694]
[1767855427110,20.92427439,135.06,135.02,0.68477694]
[1767855428135,20.92427439,135.06,134.97,13.52]
[1767855428136,3.50542799,135.03,134.97,7.40870198]
[1767855428340,3.50542799,135.03,134.98,3.50542799]
[1767855428842,4.19626954,135.05,135.0,3.50542799]
[1767855429134,0.69084155,135.05,135.01,3.50542799]
[1767855429833,8.09511594,135.06,135.02,3.50542799]
[1767855430029,8.09511594,135.06,135.02,0.68477694]
[1767855430344,0.69084155,135.05,135.01,4.19020493]
[1767855430721,4.19626954,135.05,135.01,0.68477694]
[1767855431426,11.60146379,135.05,135.01,0.68477694]
[1767855431814,4.19626954,135.04,134.99,4.19020493]
[1767855432012,3.50542799,135.03,134.99,0.68477694]
[1767855432412,0.69084155,135.02,134.98,0.68477694]
[1767855432617,0.69084155,135.01,134.98,0.68477694]
[1767855433358,4.48059268,135.03,134.98,0.68477694]
[1767855433515,8.09741191,135.02,134.98,4.19020493]
[1767855433714,0.69084155,135.02,134.99,3.50542799]
[1767855433940,8.59607022,135.04,135.0,0.68477694]
[1767855434134,8.59607022,135.04,134.98,7.4084302]
[1767855434135,0.69084155,135.03,134.98,0.68477694]
[1767855434346,0.69084155,135.02,134.98,4.19020493]
[1767855435336,0.69084155,135.02,134.99,3.50542799]
[1767855435533,0.69084155,135.04,135.0,0.68477694]
[1767855435842,7.40522379,135.04,135.01,0.68477694]
[1767855436024,8.09606534,135.04,135.01,0.68477694]
[1767855436349,11.60149333,135.04,135.01,0.68477694]
[1767855436546,8.09606534,135.04,135.01,0.68477694]
[1767855436726,30.1145265,135.04,134.99,4.19020493]
[1767855436927,0.69084155,135.03,134.99,4.19020493]
[1767855437242,0.69084155,135.03,134.97,7.40892348]
[1767855437243,0.69084155,135.01,134.97,0.68477694]
[1767855437543,3.50542799,135.01,134.97,0.68477694]
[1767855437843,0.69084155,135.01,134.97,4.19020493]
[1767855439044,0.69084155,135.01,134.97,3.50542799]
[1767855439260,0.69084155,135.01,134.97,4.19020493]
[1767855439423,8.09824895,135.0,134.97,0.68477694]
[1767855439626,8.09824895,135.0,134.96,4.19020493]
[1767855441536,8.09824895,135.0,134.96,0.68477694]
[1767855441721,8.09824895,135.0,134.96,4.19020493]
[1767855442630,21.61739999,135.02,134.98,0.68477694]
[1767855443348,0.69084155,135.0,134.96,4.19020493]
[1767855443658,8.09888529,134.99,134.95,4.19020493]
[1767855443964,0.69084155,135.0,134.96,4.19020493]
[1767855444140,8.09732753,135.02,134.98,4.19020493]
[1767855444443,0.5,135.03,134.94,25.93742162]
[1767855444444,1.19084155,135.03,134.99,4.19020493]
[1767855444648,0.69084155,135.03,134.99,4.19020493]
[1767855444949,0.69084155,135.02,134.98,4.19020493]
[1767855446241,0.69084155,135.02,134.98,0.68477694]
[1767855446440,0.69084155,135.02,134.98,4.19020493]
[1767855446638,0.69084155,135.02,134.99,3.50542799]
[1767855446949,8.09661333,135.03,134.99,4.19020493]
[1767855447124,0.5,135.01,134.99,4.19020493]
[1767855447324,0.5,135.01,134.99,3.50542799]
[1767855447525,20.92546588,135.04,134.98,7.40844087]
[1767855447526,13.52,135.04,135.0,4.19020493]
[1767855447725,21.61614679,135.04,135.0,0.68477694]
[1767855449451,0.69084155,135.03,134.99,10.91325084]
[1767855449668,0.69084155,135.03,134.99,7.40782285]
[1767855449952,0.69084155,135.03,135.0,3.50542799]
[1767855450448,7.40490641,135.05,135.01,0.68477694]
[1767855450449,0.69084155,135.05,135.01,0.68477694]
[1767855450653,0.69084155,135.05,135.02,0.68477694]
[1767855451359,0.69084155,135.03,134.98,10.34204939]
[1767855451546,2.24890898,135.04,134.97,13.52]
[1767855451547,0.69084155,135.01,134.97,13.52]
[1767855451733,0.69084155,135.01,134.96,7.40927598]
[1767855451938,7.4074854,135.0,134.96,0.68477694]
[1767855452160,8.08968486,135.0,134.96,0.68477694]
[1767855452657,7.58968486,135.0,134.96,0.68477694]
[1767855452852,7.58968486,135.0,134.94,2.97133089]
[1767855452853,0.68219946,134.99,134.94,2.97133089]
[1767855453071,0.68219946,134.99,134.94,0.72242191]
[1767855453231,0.68219946,134.99,134.95,0.72242191]
[1767855454158,0.68219946,135.02,134.98,0.72242191]
[1767855454453,0.68219946,135.0,134.96,0.72242191]
[1767855455031,0.68219946,135.0,134.96,2.97133089]
[1767855456454,8.08961017,135.0,134.96,2.97133089]
[1767855456756,2.93110844,134.99,134.95,0.72242191]
[1767855456936,0.68219946,134.98,134.95,0.72242191]
[1767855457145,0.68219946,134.98,134.93,2.97133089]
[1767855457458,0.68219946,134.98,134.91,0.72242191]
[1767855457459,2.93110844,134.95,134.91,0.72242191]
[1767855457632,0.65219947,134.93,134.89,0.72242191]
[1767855457840,0.65219947,134.93,134.89,8.13560815]
[1767855458048,2.24890898,134.95,134.9,0.72242191]
[1767855458556,0.28432314,134.94,134.9,0.72242191]
[1767855458727,2.53323212,134.94,134.9,0.72242191]
[1767855459132,2.24890898,134.93,134.89,0.72242191]
[1767855459344,2.24890898,134.93,134.88,0.72242191]
[1767855459345,7.41179958,134.92,134.88,0.72242191]
[1767855459541,8.09399904,134.92,134.88,0.72242191]
[1767855460239,0.68219946,134.93,134.89,0.72242191]
[1767855460434,0.68219946,134.93,134.88,9.66266776]
[1767855460435,0.68219946,134.93,134.88,10.38515288]
[1767855460759,8.09239187,134.95,134.9,0.72242191]
[1767855460956,151.13371176,135.01,134.89,7.41344721]
[1767855460957,13.52,134.99,134.94,2.97133089]
[1767855461162,9.65631638,135.0,134.89,14.09355791]
[1767855461163,20.92667852,135.02,134.97,2.97133089]
[1767855461352,0.68219946,135.04,134.99,0.72242191]
[1767855461656,21.60741273,135.04,134.99,10.3791358]
[1767855461861,14.20219946,135.04,135.01,2.24890898]
[1767855462040,14.20219946,135.04,134.99,2.24890898]
[1767855462359,14.20219946,135.04,135.0,2.24890898]
[1767855462655,14.20219946,135.04,135.0,2.97133089]
[1767855462860,13.52,135.04,135.01,2.97133089]
[1767855463037,8.08644916,135.06,135.01,0.72242191]
[1767855463238,0.68219946,135.06,135.01,2.97133089]
[1767855463438,5.59426727,135.06,135.01,0.72242191]
[1767855463660,0.68219946,135.06,135.01,10.37800883]
[1767855463868,8.08531651,135.08,135.03,2.97133089]
[1767855464162,0.68219946,135.06,135.01,8.12909985]
[1767855464459,0.68219946,135.06,135.02,2.97133089]
[1767855464659,0.68219946,135.06,135.01,7.40667794]
[1767855464864,0.68219946,135.06,135.02,5.52042844]
[1767855465357,0.68219946,135.06,135.01,7.40667794]
[1767855465558,0.68219946,135.06,135.0,0.72242191]
[1767855465559,0.68219946,135.05,135.0,6.24285035]
[1767855465756,0.68219946,135.05,135.02,5.52042844]
[1767855465934,5.5989692,135.07,135.02,5.52042844]
[1767855466133,0.68219946,135.07,135.03,6.24285035]
[1767855467662,13.60623833,135.07,135.03,0.72242191]
[1767855467864,13.60623833,135.07,135.02,0.72242191]
[1767855468063,8.08580989,135.07,135.02,0.72242191]
[1767855468258,0.68219946,135.06,135.02,0.72242191]
[1767855469956,21.60541124,135.08,135.04,0.72242191]
[1767855470148,21.60541124,135.08,135.04,0.69213598]
[1767855470337,8.08541124,135.08,135.04,0.69213598]
[1767855470969,7.4026,135.09,135.04,6.21256442]
[1767855471166,8.08479946,135.09,135.04,6.21256442]
[1767855471967,8.08479946,135.09,135.04,0.69213598]
[1767855472164,8.08479946,135.09,135.04,6.21256442]
[1767855472363,8.08479946,135.09,135.04,0.69213598]
[1767855472573,13.52,135.1,135.06,0.72242191]
[1767855472748,21.60417066,135.1,135.04,7.40514845]
[1767855473078,8.08417066,135.1,135.05,5.52042844]
[1767855473663,8.08417066,135.1,135.04,7.40514845]
[1767855473973,8.08417066,135.1,135.05,5.52042844]
[1767855474308,0.68219946,135.09,135.04,7.40514845]
[1767855474570,0.68219946,135.09,135.05,5.52042844]
[1767855474973,0.68219946,135.09,135.05,12.92484044]
[1767855475658,8.08369875,135.11,135.06,0.72242191]
[1767855475861,8.08369875,135.11,135.05,12.92484044]
[1767855475862,8.08369875,135.11,135.07,0.72242191]
[1767855476068,8.08369875,135.11,135.07,0.69569798]
[1767855476463,8.08369875,135.11,135.07,0.66893349]
[1767855476859,0.9665226,135.1,135.04,7.40480336]
[1767855477062,0.68219946,135.09,135.04,12.9252318]
[1767855477274,0.68219946,135.09,135.04,7.40480336]
[1767855477443,0.68219946,135.09,135.04,12.9252318]
[1767855477771,0.68219946,135.09,135.05,5.52042844]
[1767855477967,5.66259001,135.12,135.06,5.52042844]
[1767855478178,6.34478947,135.12,135.06,5.52042844]
[1767855478382,0.68219946,135.11,135.07,0.72242191]
[1767855478559,0.68219946,135.11,135.07,0.69214008]
[1767855479083,8.08384504,135.11,135.07,0.69214008]
[1767855479984,7.40105545,135.12,135.07,12.92390885]
[1767855480360,7.40105545,135.12,135.07,12.89362506]
[1767855480559,8.08325491,135.12,135.07,6.24285035]
[1767855480975,8.08325491,135.12,135.08,0.72242191]
[1767855481487,0.68219946,135.16,135.12,0.72242191]
[1767855481979,0.68219946,135.16,135.08,20.92293813]
[1767855481980,6.2026279,135.16,135.1,6.24285035]
[1767855482178,0.68219946,135.16,135.11,6.21600555]
[1767855482387,0.68219946,135.16,135.08,20.92293813]
[1767855482388,7.39827349,135.17,135.13,0.69557711]
[1767855482772,13.57417235,135.17,135.13,0.69557711]
[1767855483080,8.05463747,135.16,135.11,0.69557711]
[1767855483283,13.57506591,135.16,135.11,0.69557711]
[1767855483585,13.57506591,135.16,135.06,37.01895473]
[1767855483586,0.65547042,135.11,135.06,0.69557711]
[1767855483790,6.17589886,135.11,135.06,0.69557711]
[1767855484681,0.65547042,135.1,135.06,7.40397591]